fUST/lending_fUST_20250310
["ID","MTS","AMOUNT","RATE_DAILY","PERIOD"]
[355816075,1741608653795,-500.0,0.00052602,120]
[355816076,1741608653805,-500.0,0.00052602,120]
[355816077,1741608653815,-500.0,0.00052602,120]
[355816078,1741608653826,-500.0,0.00052602,15]
[355816079,1741608653836,-25655.27,0.00052602,7]
[355816080,1741608653846,-704.34,0.00052602,120]
[355816081,1741608653858,-1411.84,0.00052602,120]
[355816082,1741608653868,-519.72,0.00052602,120]
[355816083,1741608653878,-500.0,0.00052602,120]
[355816084,1741608653888,-1148.55,0.00052602,120]
[355816085,1741608653943,-151.0,0.00052602,120]
[355816086,1741608653953,-500.0,0.00052602,120]
[355816087,1741608653965,-967.69,0.00052602,60]
[355816088,1741608653976,-533.36,0.00052602,120]
[355816089,1741608653987,-500.0,0.00052602,120]
[355816090,1741608653999,-601.46538555,0.00052602,120]
[355816091,1741608654020,-502.19,0.00052602,120]
[355816092,1741608654029,-666.59,0.00052602,120]
[355816093,1741608654039,-187.50332627,0.00052602,120]
[355816094,1741608654050,-571.19,0.00052602,120]
[355816095,1741608654059,-500.0,0.00052602,120]
[355816096,1741608654069,-500.0,0.00052602,120]
[355816097,1741608654079,-1286.18,0.00052602,120]
[355816098,1741608654090,-500.0,0.00052602,120]
[355816099,1741608654101,-1736.39,0.00052602,120]
[355816100,1741608654111,-151.0,0.00052602,120]
[355816101,1741608654121,-500.0,0.00052602,120]
[355816102,1741608654131,-500.0,0.00052602,7]
[355816103,1741608654141,-209.45672597,0.00052602,120]
[355816104,1741608654151,-500.0,0.00052602,120]
[355816105,1741608654161,-500.0,0.00052602,120]
[355816106,1741608654171,-520.83,0.00052602,120]
[355816107,1741608654180,-500.0,0.00052602,120]
[355816108,1741608654191,-2660.17,0.00052602,120]
[355816109,1741608654202,-953.17,0.00052602,120]
[355816110,1741608654212,-500.0,0.00052602,120]
[355816111,1741608654223,-500.0,0.00052602,120]
[355816112,1741608654233,-590.84996564,0.00052602,120]
[355816113,1741608654243,-500.0,0.00052602,120]
[355816114,1741608654252,-1609.58,0.00052602,120]
[355816115,1741608654263,-2620.89,0.00052602,120]
[355816116,1741608654274,-500.0,0.00052602,120]
[355816117,1741608654284,-1008.54,0.00052602,120]
[355816118,1741608654294,-634.3,0.00052602,120]
[355816119,1741608654304,-500.0,0.00052602,120]
[355816120,1741608654313,-2201.3,0.00052602,120]
[355816121,1741608654323,-828.69,0.00052602,120]
[355816122,1741608654333,-4462.05,0.00052602,120]
[355816123,1741608654343,-500.0,0.00052602,120]
[355816124,1741608654353,-825.04,0.00052602,120]
[355816125,1741608654363,-1579.3,0.00052602,120]
[355816126,1741608654373,-500.0,0.00052602,120]
[355816127,1741608654382,-682.19,0.00052602,120]
[355816128,1741608654392,-783.28,0.00052602,120]
[355816129,1741608654401,-500.0,0.00052602,120]
[355816130,1741608654411,-500.0,0.00052602,120]
[355816131,1741608654420,-500.0,0.00052602,120]
[355816132,1741608654430,-182.02946722,0.00052602,120]
[355816133,1741608654439,-500.0,0.00052602,120]
[355816134,1741608654448,-1275.51,0.00052602,120]
[355816135,1741608654458,-648.98,0.00052602,120]
[355816136,1741608654469,-500.0,0.00052602,120]
[355816137,1741608654478,-1934.53,0.00052602,120]
[355816138,1741608654488,-1028.4,0.00052602,120]
[355816139,1741608654499,-500.0,0.00052602,120]
[355816140,1741608654509,-676.77,0.00052602,120]
[355816141,1741608654518,-500.0,0.00052602,120]
[355816142,1741608654528,-500.0,0.00052602,120]
[355816143,1741608654538,-788.58,0.00052602,120]
[355816144,1741608654548,-3576.36,0.00052602,120]
[355816145,1741608654557,-551.56,0.00052602,120]
[355816146,1741608654567,-500.0,0.00052602,120]
[355816147,1741608654577,-2519.57,0.00052602,120]
[355816148,1741608654586,-500.0,0.00052602,120]
[355816149,1741608654596,-500.0,0.00052602,120]
[355816150,1741608654606,-9999.0,0.00052602,2]
[355816151,1741608654616,-500.0,0.00052602,120]
[355816152,1741608654625,-398.0,0.00052656,2]
[355816153,1741608654636,-206.02,0.000528,30]
[355816154,1741608654645,-600.0,0.000528,2]
[355816155,1741608654655,-500.0,0.00052876,120]
[355816156,1741608654665,-500.0,0.00052876,120]
[355816157,1741608654675,-313.68061168,0.00052876,120]
[355816158,1741608654684,-500.0,0.00052876,120]
[355816159,1741608654694,-376.80467991,0.00052876,120]
[355816160,1741608654703,-500.0,0.00052876,2]
[355816161,1741608654712,-500.0,0.00052876,120]
[355816162,1741608654723,-500.0,0.00052876,120]
[355816163,1741608654734,-661.05,0.00052876,120]
[355816164,1741608654744,-500.0,0.00052876,120]
[355816165,1741608654754,-500.0,0.00052876,120]
[355816166,1741608654764,-500.0,0.00052876,120]
[355816167,1741608654774,-1789.85,0.00052876,120]
[355816168,1741608654784,-500.0,0.00052876,120]
[355816169,1741608654795,-500.0,0.00052876,120]
[355816170,1741608654805,-500.0,0.00052876,120]
[355816171,1741608654815,-500.0,0.00052876,120]
[355816172,1741608654825,-500.0,0.00052876,120]
[355816173,1741608654835,-500.0,0.00052876,120]
[355816174,1741608654844,-500.0,0.00052876,120]
[355816175,1741608654857,-500.0,0.00052876,120]
[355816176,1741608654866,-500.0,0.00052876,120]
[355816177,1741608654875,-500.0,0.00052876,120]
[355816178,1741608654885,-500.0,0.00052876,120]
[355816179,1741608654895,-1401.64,0.00052876,120]
[355816180,1741608654905,-500.0,0.00052876,120]
[355816181,1741608654915,-500.0,0.00052876,120]
[355816182,1741608654926,-500.0,0.00052876,120]
[355816183,1741608654936,-500.0,0.00052876,120]
[355816184,1741608654946,-500.0,0.00052876,120]
[355816185,1741608654956,-775.39,0.00052876,120]
[355816186,1741608654966,-500.0,0.00052876,120]
[355816187,1741608654975,-500.0,0.00052876,2]
[355816188,1741608654986,-499.98447937,0.00052876,120]
[355816189,1741608654996,-500.0,0.00052876,120]
[355816190,1741608655007,-500.0,0.00052876,120]
[355816191,1741608655018,-500.0,0.00052876,120]
[355816192,1741608655028,-500.0,0.00052876,15]
[355816193,1741608655038,-25655.27,0.00052876,7]
[355816194,1741608655049,-704.34,0.00052876,120]
[355816195,1741608655058,-1411.84,0.00052876,120]
[355816196,1741608655068,-519.72,0.00052876,120]
[355816197,1741608655078,-372.23550954,0.00052876,120]
[355816198,1741608655088,-1148.55,0.00052876,120]
[355816199,1741608655097,-500.0,0.00052876,120]
[355816200,1741608655107,-967.69,0.00052876,60]
[355816201,1741608655117,-533.36,0.00052876,120]
[355816202,1741608655127,-500.0,0.00052876,120]
[355816203,1741608655136,-502.19,0.00052876,120]
[355816204,1741608655146,-666.59,0.00052876,120]
[355816205,1741608655157,-500.0,0.00052876,120]
[355816206,1741608655167,-571.19,0.00052876,120]
[355816207,1741608655177,-500.0,0.00052876,120]
[355816208,1741608655187,-1286.18,0.00052876,120]
[355816209,1741608655197,-500.0,0.00052876,120]
[355816210,1741608655207,-1736.39,0.00052876,120]
[355816211,1741608655219,-500.0,0.00052876,120]
[355816212,1741608655230,-500.0,0.00052876,7]
[355816213,1741608655240,-500.0,0.00052876,120]
[355816214,1741608655250,-500.0,0.00052876,120]
[355816215,1741608655260,-520.83,0.00052876,120]
[355816216,1741608655270,-500.0,0.00052876,120]
[355816217,1741608655279,-2660.17,0.00052876,120]
[355816218,1741608655288,-953.17,0.00052876,120]
[355816219,1741608655298,-500.0,0.00052876,120]
[355816220,1741608655307,-500.0,0.00052876,120]
[355816221,1741608655317,-500.0,0.00052876,120]
[355816222,1741608655326,-1609.58,0.00052876,120]
[355816223,1741608655336,-2620.89,0.00052876,120]
[355816224,1741608655345,-500.0,0.00052876,120]
[355816225,1741608655355,-1008.54,0.00052876,120]
[355816226,1741608655364,-634.3,0.00052876,120]
[355816227,1741608655374,-500.0,0.00052876,120]
[355816228,1741608655383,-2201.3,0.00052876,120]
[355816229,1741608655393,-828.69,0.00052876,120]
[355816230,1741608655402,-4462.05,0.00052876,120]
[355816231,1741608655411,-500.0,0.00052876,120]
[355816232,1741608655420,-825.04,0.00052876,120]
[355816233,1741608655429,-1579.3,0.00052876,120]
[355816234,1741608655439,-500.0,0.00052876,120]
[355816235,1741608655448,-682.19,0.00052876,120]
[355816236,1741608655457,-783.28,0.00052876,120]
[355816237,1741608655468,-500.0,0.00052876,120]
[355816238,1741608655478,-500.0,0.00052876,120]
[355816239,1741608655487,-500.0,0.00052876,120]
[355816240,1741608655496,-500.0,0.00052876,120]
[355816241,1741608655506,-1275.51,0.00052876,120]
[355816242,1741608655515,-648.98,0.00052876,120]
[355816243,1741608655525,-500.0,0.00052876,120]
[355816244,1741608655535,-1934.53,0.00052876,120]
[355816245,1741608655545,-1028.4,0.00052876,120]
[355816246,1741608655554,-500.0,0.00052876,120]
[355816247,1741608655564,-676.77,0.00052876,120]
[355816248,1741608655574,-500.0,0.00052876,120]
[355816249,1741608655584,-500.0,0.00052876,120]
[355816250,1741608655595,-788.58,0.00052876,120]
[355816251,1741608655604,-3576.36,0.00052876,120]
[355816252,1741608655614,-551.56,0.00052876,120]
[355816253,1741608655624,-500.0,0.00052876,120]
[355816254,1741608655636,-2519.57,0.00052876,120]
[355816255,1741608655645,-500.0,0.00052876,120]
[355816256,1741608655656,-500.0,0.00052876,120]
[355816257,1741608655666,-9999.0,0.00052876,2]
[355816258,1741608655677,-500.0,0.00052876,120]
[355816259,1741608655687,-151.0,0.000529,30]
[355816260,1741608655695,-151.0,0.000529,30]
[355816261,1741608655703,-151.0,0.000529,120]
[355816262,1741608655710,-151.0,0.000529,120]
[355816263,1741608655722,-450.0,0.00052916,2]
[355816264,1741608655728,-162.08,0.00053,30]
[355816265,1741608655736,-153.74,0.00053,30]
[355816266,1741608655745,-151.0,0.0005315,120]
[355816267,1741608655755,-151.0,0.0005315,120]
[355816268,1741608655764,-151.0,0.0005315,120]
[355816269,1741608655774,-151.0,0.0005315,120]
[355816270,1741608655784,-500.0,0.0005315,120]
[355816271,1741608655793,-500.0,0.0005315,120]
[355816272,1741608655803,-500.0,0.0005315,120]
[355816273,1741608655812,-500.0,0.0005315,2]
[355816274,1741608655822,-500.0,0.0005315,120]
[355816275,1741608655832,-546.26363475,0.0005315,120]
[355816276,1741608655842,-661.05,0.0005315,120]
[355816277,1741608655855,-500.0,0.0005315,120]
[355816278,1741608655864,-500.0,0.0005315,120]
[355816279,1741608655874,-500.0,0.0005315,120]
[355816280,1741608655884,-1789.85,0.0005315,120]
[355816281,1741608655894,-500.0,0.0005315,120]
[355816282,1741608655904,-500.0,0.0005315,120]
[355816283,1741608655914,-500.0,0.0005315,120]
[355816284,1741608655925,-519.60046886,0.0005315,120]
[355816285,1741608655936,-281.5803213,0.0005315,120]
[355816286,1741608655946,-500.0,0.0005315,120]
[355816287,1741608655956,-500.0,0.0005315,120]
[355816288,1741608655967,-347.61716522,0.0005315,120]
[355816289,1741608655977,-500.0,0.0005315,120]
[355816290,1741608655986,-500.0,0.0005315,120]
[355816291,1741608655996,-160.98641478,0.0005315,120]
[355816292,1741608656006,-151.639161,0.0005315,120]
[355816293,1741608656016,-1401.64,0.0005315,120]
[355816294,1741608656027,-500.0,0.0005315,120]
[355816295,1741608656036,-500.0,0.0005315,120]
[355816296,1741608656046,-500.0,0.0005315,120]
[355816297,1741608656056,-500.0,0.0005315,120]
[355816298,1741608656066,-500.0,0.0005315,120]
[355816299,1741608656076,-775.39,0.0005315,120]
[355816300,1741608656086,-500.0,0.0005315,2]
[355816301,1741608656096,-500.0,0.0005315,120]
[355816302,1741608656106,-500.0,0.0005315,120]
[355816303,1741608656116,-500.0,0.0005315,120]
[355816304,1741608656126,-500.0,0.0005315,120]
[355816305,1741608656138,-500.0,0.0005315,15]
[355816306,1741608656148,-25655.27,0.0005315,7]
[355816307,1741608656159,-704.34,0.0005315,120]
[355816308,1741608656169,-1411.84,0.0005315,120]
[355816309,1741608656180,-519.72,0.0005315,120]
[355816310,1741608656190,-1148.55,0.0005315,120]
[355816311,1741608656200,-500.0,0.0005315,120]
[355816312,1741608656210,-967.69,0.0005315,60]
[355816313,1741608656223,-533.36,0.0005315,120]
[355816314,1741608656233,-500.0,0.0005315,120]
[355816315,1741608656243,-502.19,0.0005315,120]
[355816316,1741608656253,-666.59,0.0005315,120]
[355816317,1741608656263,-500.0,0.0005315,120]
[355816318,1741608656272,-571.19,0.0005315,120]
[355816319,1741608656282,-500.0,0.0005315,120]
[355816320,1741608656291,-1286.18,0.0005315,120]
[355816321,1741608656301,-500.0,0.0005315,120]
[355816322,1741608656311,-1736.39,0.0005315,120]
[355816323,1741608656321,-500.0,0.0005315,120]
[355816324,1741608656330,-500.0,0.0005315,7]
[355816325,1741608656340,-500.0,0.0005315,120]
[355816326,1741608656350,-500.0,0.0005315,120]
[355816327,1741608656360,-520.83,0.0005315,120]
[355816328,1741608656370,-500.0,0.0005315,120]
[355816329,1741608656380,-2660.17,0.0005315,120]
[355816330,1741608656390,-953.17,0.0005315,120]
[355816331,1741608656400,-500.0,0.0005315,120]
[355816332,1741608656410,-500.0,0.0005315,120]
[355816333,1741608656420,-500.0,0.0005315,120]
[355816334,1741608656429,-1609.58,0.0005315,120]
[355816335,1741608656440,-2620.89,0.0005315,120]
[355816336,1741608656450,-500.0,0.0005315,120]
[355816337,1741608656460,-1008.54,0.0005315,120]
[355816338,1741608656472,-634.3,0.0005315,120]
[355816339,1741608656482,-500.0,0.0005315,120]
[355816340,1741608656492,-2201.3,0.0005315,120]
[355816341,1741608656502,-828.69,0.0005315,120]
[355816342,1741608656511,-4462.05,0.0005315,120]
[355816343,1741608656521,-500.0,0.0005315,120]
[355816344,1741608656532,-825.04,0.0005315,120]
[355816345,1741608656541,-500.0,0.0005315,120]
[355816346,1741608656551,-682.19,0.0005315,120]
[355816347,1741608656561,-1579.3,0.0005315,120]
[355816348,1741608656571,-783.28,0.0005315,120]
[355816349,1741608656581,-500.0,0.0005315,120]
[355816350,1741608656591,-500.0,0.0005315,120]
[355816351,1741608656600,-500.0,0.0005315,120]
[355816352,1741608656610,-500.0,0.0005315,120]
[355816353,1741608656620,-1275.51,0.0005315,120]
[355816354,1741608656630,-648.98,0.0005315,120]
[355816355,1741608656639,-500.0,0.0005315,120]
[355816356,1741608656649,-1028.4,0.0005315,120]
[355816357,1741608656659,-1934.53,0.0005315,120]
[355816358,1741608656670,-500.0,0.0005315,120]
[355816359,1741608656680,-676.77,0.0005315,120]
[355816360,1741608656690,-500.0,0.0005315,120]
[355816361,1741608656700,-500.0,0.0005315,120]
[355816362,1741608656710,-788.58,0.0005315,120]
[355816363,1741608656723,-3576.36,0.0005315,120]
[355816364,1741608656732,-551.56,0.0005315,120]
[355816365,1741608656742,-500.0,0.0005315,120]
[355816366,1741608656752,-2519.57,0.0005315,120]
[355816367,1741608656762,-500.0,0.0005315,120]
[355816368,1741608656772,-500.0,0.0005315,120]
[355816369,1741608656782,-9999.0,0.0005315,2]
[355816370,1741608656792,-500.0,0.0005315,120]
[355816371,1741608656802,-290.8,0.000534,120]
[355816372,1741608656812,-400.0,0.00053424,120]
[355816373,1741608656823,-500.0,0.00053424,120]
[355816374,1741608656833,-500.0,0.00053424,120]
[355816375,1741608656843,-500.0,0.00053424,120]
[355816376,1741608656856,-151.0,0.00053424,110]
[355816377,1741608656866,-151.0,0.00053424,110]
[355816378,1741608656876,-500.0,0.00053424,2]
[355816379,1741608656886,-151.0,0.00053424,120]
[355816380,1741608656898,-500.0,0.00053424,120]
[355816381,1741608656909,-151.0,0.00053424,120]
[355816382,1741608656919,-151.0,0.00053424,10]
[355816383,1741608656929,-661.05,0.00053424,120]
[355816384,1741608656942,-500.0,0.00053424,120]
[355816385,1741608656952,-151.0,0.00053424,120]
[355816386,1741608656963,-500.0,0.00053424,120]
[355816387,1741608656974,-500.0,0.00053424,120]
[355816388,1741608656984,-1789.85,0.00053424,120]
[355816389,1741608656994,-500.0,0.00053424,120]
[355816390,1741608657005,-500.0,0.00053424,120]
[355816391,1741608657016,-500.0,0.00053424,120]
[355816392,1741608657026,-557.47476952,0.00053424,120]
[355816393,1741608657036,-500.0,0.00053424,120]
[355816394,1741608657047,-500.0,0.00053424,120]
[355816395,1741608657057,-500.0,0.00053424,120]
[355816396,1741608657067,-1401.64,0.00053424,120]
[355816397,1741608657077,-500.0,0.00053424,120]
[355816398,1741608657086,-500.0,0.00053424,120]
[355816399,1741608657096,-623.85933944,0.00053424,120]
[355816400,1741608657106,-500.0,0.00053424,120]
[355816401,1741608657115,-500.0,0.00053424,120]
[355816402,1741608657125,-775.39,0.00053424,120]
[355816403,1741608657135,-500.0,0.00053424,120]
[355816404,1741608657146,-500.0,0.00053424,2]
[355816405,1741608657155,-500.0,0.00053424,120]
[355816406,1741608657165,-500.0,0.00053424,120]
[355816407,1741608657175,-500.0,0.00053424,120]
[355816408,1741608657186,-500.0,0.00053424,15]
[355816409,1741608657198,-25655.27,0.00053424,7]
[355816410,1741608657208,-704.34,0.00053424,120]
[355816411,1741608657220,-1411.84,0.00053424,120]
[355816412,1741608657231,-519.72,0.00053424,120]
[355816413,1741608657241,-1148.55,0.00053424,120]
[355816414,1741608657251,-500.0,0.00053424,120]
[355816415,1741608657261,-967.69,0.00053424,60]
[355816416,1741608657271,-533.36,0.00053424,120]
[355816417,1741608657282,-243.76275225,0.00053424,120]
[355816418,1741608657292,-502.19,0.00053424,120]
[355816419,1741608657302,-666.59,0.00053424,120]
[355816420,1741608657312,-500.0,0.00053424,120]
[355816421,1741608657322,-571.19,0.00053424,120]
[355816422,1741608657332,-255.20571552,0.00053424,120]
[355816423,1741608657342,-1286.18,0.00053424,120]
[355816424,1741608657352,-500.0,0.00053424,120]
[355816425,1741608657363,-1736.39,0.00053424,120]
[355816426,1741608657374,-500.0,0.00053424,120]
[355816427,1741608657384,-500.0,0.00053424,7]
[355816428,1741608657394,-500.0,0.00053424,120]
[355816429,1741608657404,-500.0,0.00053424,120]
[355816430,1741608657415,-520.83,0.00053424,120]
[355816431,1741608657425,-500.0,0.00053424,120]
[355816432,1741608657435,-2660.17,0.00053424,120]
[355816433,1741608657446,-953.17,0.00053424,120]
[355816434,1741608657456,-500.0,0.00053424,120]
[355816435,1741608657468,-500.0,0.00053424,120]
[355816436,1741608657478,-500.0,0.00053424,120]
[355816437,1741608657488,-1609.58,0.00053424,120]
[355816438,1741608657499,-2620.89,0.00053424,120]
[355816439,1741608657509,-500.0,0.00053424,120]
[355816440,1741608657520,-1008.54,0.00053424,120]
[355816441,1741608657530,-634.3,0.00053424,120]
[355816442,1741608657540,-500.0,0.00053424,120]
[355816443,1741608657550,-2201.3,0.00053424,120]
[355816444,1741608657561,-828.69,0.00053424,120]
[355816445,1741608657571,-4462.05,0.00053424,120]
[355816446,1741608657582,-500.0,0.00053424,120]
[355816447,1741608657592,-825.04,0.00053424,120]
[355816448,1741608657602,-500.0,0.00053424,120]
[355816449,1741608657613,-682.19,0.00053424,120]
[355816450,1741608657624,-1579.3,0.00053424,120]
[355816451,1741608657635,-783.28,0.00053424,120]
[355816452,1741608657646,-500.0,0.00053424,120]
[355816453,1741608657656,-500.0,0.00053424,120]
[355816454,1741608657667,-500.0,0.00053424,120]
[355816455,1741608657677,-500.0,0.00053424,120]
[355816456,1741608657687,-1275.51,0.00053424,120]
[355816457,1741608657698,-648.98,0.00053424,120]
[355816458,1741608657710,-542.11513484,0.00053424,120]
[355816459,1741608657883,-1028.4,0.00053424,120]
[355816460,1741608657895,-1934.53,0.00053424,120]
[355816461,1741608657906,-500.0,0.00053424,120]
[355816462,1741608657916,-676.77,0.00053424,120]
[355816463,1741608657926,-256.25320988,0.00053424,120]
[355816464,1741608657937,-500.0,0.00053424,120]
[355816465,1741608657947,-788.58,0.00053424,120]
[355816466,1741608657957,-3576.36,0.00053424,120]
[355816467,1741608657968,-551.56,0.00053424,120]
[355816468,1741608657978,-500.0,0.00053424,120]
[355816469,1741608657988,-2519.57,0.00053424,120]
[355816470,1741608657998,-500.0,0.00053424,120]
[355816471,1741608658007,-500.0,0.00053424,120]
[355816472,1741608658017,-9999.0,0.00053424,2]
[355816473,1741608658027,-500.0,0.00053424,120]
[355816474,1741608658038,-3000.0,0.00053425,10]
[355816475,1741608658048,-550.0,0.00053464,2]
[355816476,1741608658058,-151.0,0.00053698,120]
[355816477,1741608658068,-151.0,0.00053698,120]
[355816478,1741608658078,-151.0,0.00053698,120]
[355816479,1741608658088,-151.0,0.00053698,120]
[355816480,1741608658098,-191.45956508,0.00053698,120]
[355816481,1741608658108,-500.0,0.00053698,120]
[355816482,1741608658118,-500.0,0.00053698,120]
[355816483,1741608658128,-151.0,0.00053698,120]
[355816484,1741608658138,-500.0,0.00053698,2]
[355816485,1741608658148,-565.02443274,0.00053698,120]
[355816486,1741608658158,-661.05,0.00053698,120]
[355816487,1741608658168,-500.0,0.00053698,120]
[355816488,1741608658178,-500.0,0.00053698,120]
[355816489,1741608658189,-500.0,0.00053698,120]
[355816490,1741608658199,-1789.85,0.00053698,120]
[355816491,1741608658209,-500.0,0.00053698,120]
[355816492,1741608658222,-500.0,0.00053698,120]
[355816493,1741608658231,-500.0,0.00053698,120]
[355816494,1741608658242,-500.0,0.00053698,120]
[355816495,1741608658252,-500.0,0.00053698,120]
[355816496,1741608658262,-500.0,0.00053698,120]
[355816497,1741608658271,-1401.64,0.00053698,120]
[355816498,1741608658280,-500.0,0.00053698,120]
[355816499,1741608658290,-500.0,0.00053698,120]
[355816500,1741608658299,-500.0,0.00053698,120]
[355816501,1741608658309,-500.0,0.00053698,120]
[355816502,1741608658318,-775.39,0.00053698,120]
[355816503,1741608658327,-500.0,0.00053698,2]
[355816504,1741608658337,-500.0,0.00053698,120]
[355816505,1741608658346,-196.60238917,0.00053698,120]
[355816506,1741608658355,-500.0,0.00053698,120]
[355816507,1741608658365,-500.0,0.00053698,120]
[355816508,1741608658375,-500.0,0.00053698,15]
[355816509,1741608658384,-25655.27,0.00053698,7]
[355816510,1741608658394,-704.34,0.00053698,120]
[355816511,1741608658404,-1411.84,0.00053698,120]
[355816512,1741608658414,-519.72,0.00053698,120]
[355816513,1741608658423,-1148.55,0.00053698,120]
[355816514,1741608658432,-500.0,0.00053698,120]
[355816515,1741608658442,-967.69,0.00053698,60]
[355816516,1741608658452,-533.36,0.00053698,120]
[355816517,1741608658462,-502.19,0.00053698,120]
[355816518,1741608658473,-666.59,0.00053698,120]
[355816519,1741608658483,-500.0,0.00053698,120]
[355816520,1741608658492,-571.19,0.00053698,120]
[355816521,1741608658501,-1286.18,0.00053698,120]
[355816522,1741608658511,-500.0,0.00053698,120]
[355816523,1741608658521,-1736.39,0.00053698,120]
[355816524,1741608658530,-500.0,0.00053698,120]
[355816525,1741608658540,-500.0,0.00053698,7]
[355816526,1741608658549,-500.0,0.00053698,120]
[355816527,1741608658559,-500.0,0.00053698,120]
[355816528,1741608658569,-520.83,0.00053698,120]
[355816529,1741608658579,-500.0,0.00053698,120]
[355816530,1741608658589,-2660.17,0.00053698,120]
[355816531,1741608658598,-953.17,0.00053698,120]
[355816532,1741608658608,-500.0,0.00053698,120]
[355816533,1741608658618,-554.53706467,0.00053698,120]
[355816534,1741608658627,-500.0,0.00053698,120]
[355816535,1741608658637,-1609.58,0.00053698,120]
[355816536,1741608658647,-2620.89,0.00053698,120]
[355816537,1741608658657,-500.0,0.00053698,120]
[355816538,1741608658666,-1008.54,0.00053698,120]
[355816539,1741608658676,-634.3,0.00053698,120]
[355816540,1741608658686,-500.0,0.00053698,120]
[355816541,1741608658695,-2201.3,0.00053698,120]
[355816542,1741608658705,-828.69,0.00053698,120]
[355816543,1741608658714,-4462.05,0.00053698,120]
[355816544,1741608658725,-500.0,0.00053698,120]
[355816545,1741608658735,-825.04,0.00053698,120]
[355816546,1741608658744,-500.0,0.00053698,120]
[355816547,1741608658754,-682.19,0.00053698,120]
[355816548,1741608658763,-1579.3,0.00053698,120]
[355816549,1741608658773,-783.28,0.00053698,120]
[355816550,1741608658782,-500.0,0.00053698,120]
[355816551,1741608658791,-500.0,0.00053698,120]
[355816552,1741608658801,-500.0,0.00053698,120]
[355816553,1741608658810,-500.0,0.00053698,120]
[355816554,1741608658819,-1275.51,0.00053698,120]
[355816555,1741608658829,-648.98,0.00053698,120]
[355816556,1741608658839,-1028.4,0.00053698,120]
[355816557,1741608658849,-1934.53,0.00053698,120]
[355816558,1741608658863,-500.0,0.00053698,120]
[355816559,1741608658873,-676.77,0.00053698,120]
[355816560,1741608658882,-500.0,0.00053698,120]
[355816561,1741608658892,-788.58,0.00053698,120]
[355816562,1741608658903,-3576.36,0.00053698,120]
[355816563,1741608658913,-551.56,0.00053698,120]
[355816564,1741608658922,-500.0,0.00053698,120]
[355816565,1741608658935,-2519.57,0.00053698,120]
[355816566,1741608658945,-500.0,0.00053698,120]
[355816567,1741608658955,-160.16756635,0.00053698,120]
[355816568,1741608658964,-9999.0,0.00053698,2]
[355816569,1741608658975,-500.0,0.00053698,120]
[355816570,1741608658985,-4793.36,0.000537,30]
[355816571,1741608658995,-1898.0,0.00053962,120]
[355816572,1741608659005,-1898.0,0.00053962,120]
[355816573,1741608659015,-1898.0,0.00053962,120]
[355816574,1741608659026,-1898.0,0.00053962,120]